{"text_format":"1","workbook":"xlsx","n_sheets":5,"sheets":["_options","_control","Ark1","Plukklister","validering"],"not_rendered":{"charts":0,"images":2,"macros":1,"external_links":0,"defined_names":3,"comments":0,"pivot_tables":0},"unopened":[],"bounds":{"document_bytes":16777216,"sheet_cells":100000,"rows_first":2000,"rows_last":500,"rows_between":2000,"halvings":0,"cell_chars":16384,"cell_head_chars":4096},"cells_cut":0,"cells_raw":0,"read":"whole","date_system":"1900"}

{"sheet":"_options","index":0,"n_rows":16,"n_cols":1,"rows_kept":16,"cut":false,"hidden":true,"merged":[]}
["* This sheet is manipulated by the 'Options...' dialog and should not be changed by hand"]
[false]
[false]
[]
[false]
[5000]
[60]
[]
[false]
[10000]
[true]
[false]
[false]
[]
[false]
[false]

{"sheet":"_control","index":1,"n_rows":13,"n_cols":3,"rows_kept":13,"cut":false,"hidden":true,"merged":[]}
[]
[]
[]
[]
[]
[]
["*","Parameter","Value"]
["set","year",{"$f":"#REF!","v":{"$error":"#REF!"}}]
["set","year1",{"$f":"$C8+1","v":{"$error":"#REF!"}}]
["set ","year2",{"$f":"$C9+1","v":{"$error":"#REF!"}}]
["set","year3",{"$f":"$C10+1","v":{"$error":"#REF!"}}]
["set ","year4",{"$f":"$C11+1","v":{"$error":"#REF!"}}]
["set","year5",{"$f":"$C12+1","v":{"$error":"#REF!"}}]

{"sheet":"Ark1","index":2,"n_rows":1000,"n_cols":14,"rows_kept":1000,"cut":false,"hidden":false,"merged":[[4,4,4,7]]}
[{"$f":"CONCATENATE(\"setdefault client=\",D7)","v":"setdefault client=UL"}]
[{"$f":"CONCATENATE(\"setdefault version=\",D8)","v":"setdefault version=BEVLTB"}]
[{"$f":"\"set transact_setup=\"&H8","v":"set transact_setup=LTB_DRIFT"}]
[]
[null,"Budsjettmal for:",null,null,"BOTT"]
[]
[null,"Firmakode:",null,"UL",null,"Første år:",null,2024]
[null,"Budsjettversjon:",null,"BEVLTB",null,"Oppsett",null,"LTB_DRIFT"]
[]
["update_columns planner","account","dim_1","dim_5","dim_2","dim_7","free_dim_1","autopost","cur_amount","cur_amount","cur_amount","cur_amount",null,"description"]
["update_crosstab period",null,null,null,null,null,null,null,{"$f":"$H$7&\"01\"","v":"202401"},{"$f":"$H$7+1&\"01\"","v":"202501"},{"$f":"$H$7+2&\"01\"","v":"202601"},{"$f":"$H$7+3&\"01\"","v":"202701"}]
[null,null,null,null,null,null,"Justerings","Auto-"]
[null,"Konto","Koststed","Delprosjekt","Prosjekt","Arbeidspakke","kode","postering",{"$f":"I11","v":"202401"},"202501","202601","202701","Sum","Beskrivelse"]
[{"$f":"IF(OR(B14=\"\",C14=\"\",D14=\"\",E14=\"\",M14=\"\"),\"\",\"update_data,visible\")","v":""},null,null,null,{"$f":"LEFT(D14,6)","v":""},null,null,null,null,null,null,null,{"$f":"IF(SUM(I14:L14)=0,\"\",SUM(I14:L14))","v":""}]
["",null,null,null,{"$f":"LEFT(D15,6)","v":""},null,null,null,null,null,null,null,""]
["",null,null,null,"",null,null,null,null,null,null,null,""]
["",null,null,null,"",null,null,null,null,null,null,null,""]
["",null,null,null,"",null,null,null,null,null,null,null,""]
["",null,null,null,"",null,null,null,null,null,null,null,""]
["",null,null,null,"",null,null,null,null,null,null,null,""]
["",null,null,null,"",null,null,null,null,null,null,null,""]
["",null,null,null,"",null,null,null,null,null,null,null,""]
["",null,null,null,"",null,null,null,null,null,null,null,""]
["",null,null,null,"",null,null,null,null,null,null,null,""]
["",null,null,null,"",null,null,null,null,null,null,null,""]
["",null,null,null,"",null,null,null,null,null,null,null,""]
["",null,null,null,"",null,null,null,null,null,null,null,""]
["",null,null,null,"",null,null,null,null,null,null,null,""]
["",null,null,null,"",null,null,null,null,null,null,null,""]
["",null,null,null,"",null,null,null,null,null,null,null,""]
["",null,null,null,"",null,null,null,null,null,null,null,""]
["",null,null,null,"",null,null,null,null,null,null,null,""]
["",null,null,null,"",null,null,null,null,null,null,null,""]
["",null,null,null,"",null,null,null,null,null,null,null,""]
["",null,null,null,"",null,null,null,null,null,null,null,""]
["",null,null,null,"",null,null,null,null,null,null,null,""]
["",null,null,null,"",null,null,null,null,null,null,null,""]
["",null,null,null,"",null,null,null,null,null,null,null,""]
["",null,null,null,"",null,null,null,null,null,null,null,""]
["",null,null,null,"",null,null,null,null,null,null,null,""]
["",null,null,null,"",null,null,null,null,null,null,null,""]
["",null,null,null,"",null,null,null,null,null,null,null,""]
["",null,null,null,"",null,null,null,null,null,null,null,""]
["",null,null,null,"",null,null,null,null,null,null,null,""]
["",null,null,null,"",null,null,null,null,null,null,null,""]
["",null,null,null,"",null,null,null,null,null,null,null,""]
["",null,null,null,"",null,null,null,null,null,null,null,""]
["",null,null,null,"",null,null,null,null,null,null,null,""]
["",null,null,null,"",null,null,null,null,null,null,null,""]
["",null,null,null,"",null,null,null,null,null,null,null,""]
["",null,null,null,"",null,null,null,null,null,null,null,""]
["",null,null,null,"",null,null,null,null,null,null,null,""]
["",null,null,null,"",null,null,null,null,null,null,null,""]
["",null,null,null,"",null,null,null,null,null,null,null,""]
["",null,null,null,"",null,null,null,null,null,null,null,""]
["",null,null,null,"",null,null,null,null,null,null,null,""]
["",null,null,null,"",null,null,null,null,null,null,null,""]
["",null,null,null,"",null,null,null,null,null,null,null,""]
["",null,null,null,"",null,null,null,null,null,null,null,""]
["",null,null,null,"",null,null,null,null,null,null,null,""]
["",null,null,null,"",null,null,null,null,null,null,null,""]
["",null,null,null,"",null,null,null,null,null,null,null,""]
["",null,null,null,"",null,null,null,null,null,null,null,""]
["",null,null,null,"",null,null,null,null,null,null,null,""]
["",null,null,null,"",null,null,null,null,null,null,null,""]
["",null,null,null,"",null,null,null,null,null,null,null,""]
["",null,null,null,"",null,null,null,null,null,null,null,""]
["",null,null,null,"",null,null,null,null,null,null,null,""]
["",null,null,null,"",null,null,null,null,null,null,null,""]
["",null,null,null,"",null,null,null,null,null,null,null,""]
["",null,null,null,"",null,null,null,null,null,null,null,""]
["",null,null,null,"",null,null,null,null,null,null,null,""]
["",null,null,null,"",null,null,null,null,null,null,null,""]
["",null,null,null,"",null,null,null,null,null,null,null,""]
["",null,null,null,"",null,null,null,null,null,null,null,""]
["",null,null,null,"",null,null,null,null,null,null,null,""]
["",null,null,null,"",null,null,null,null,null,null,null,""]
[{"$f":"IF(OR(B78=\"\",C78=\"\",D78=\"\",E78=\"\",M78=\"\"),\"\",\"update_data,visible\")","v":""},null,null,null,"",null,null,null,null,null,null,null,{"$f":"IF(SUM(I78:L78)=0,\"\",SUM(I78:L78))","v":""}]
["",null,null,null,{"$f":"LEFT(D79,6)","v":""},null,null,null,null,null,null,null,""]
["",null,null,null,"",null,null,null,null,null,null,null,""]
["",null,null,null,"",null,null,null,null,null,null,null,""]
["",null,null,null,"",null,null,null,null,null,null,null,""]
["",null,null,null,"",null,null,null,null,null,null,null,""]
["",null,null,null,"",null,null,null,null,null,null,null,""]
["",null,null,null,"",null,null,null,null,null,null,null,""]
["",null,null,null,"",null,null,null,null,null,null,null,""]
["",null,null,null,"",null,null,null,null,null,null,null,""]
["",null,null,null,"",null,null,null,null,null,null,null,""]
["",null,null,null,"",null,null,null,null,null,null,null,""]
["",null,null,null,"",null,null,null,null,null,null,null,""]
["",null,null,null,"",null,null,null,null,null,null,null,""]
["",null,null,null,"",null,null,null,null,null,null,null,""]
["",null,null,null,"",null,null,null,null,null,null,null,""]
["",null,null,null,"",null,null,null,null,null,null,null,""]
["",null,null,null,"",null,null,null,null,null,null,null,""]
["",null,null,null,"",null,null,null,null,null,null,null,""]
["",null,null,null,"",null,null,null,null,null,null,null,""]
["",null,null,null,"",null,null,null,null,null,null,null,""]
["",null,null,null,"",null,null,null,null,null,null,null,""]
["",null,null,null,"",null,null,null,null,null,null,null,""]
["",null,null,null,"",null,null,null,null,null,null,null,""]
["",null,null,null,"",null,null,null,null,null,null,null,""]
["",null,null,null,"",null,null,null,null,null,null,null,""]
["",null,null,null,"",null,null,null,null,null,null,null,""]
["",null,null,null,"",null,null,null,null,null,null,null,""]
["",null,null,null,"",null,null,null,null,null,null,null,""]
["",null,null,null,"",null,null,null,null,null,null,null,""]
["",null,null,null,"",null,null,null,null,null,null,null,""]
["",null,null,null,"",null,null,null,null,null,null,null,""]
["",null,null,null,"",null,null,null,null,null,null,null,""]
["",null,null,null,"",null,null,null,null,null,null,null,""]
["",null,null,null,"",null,null,null,null,null,null,null,""]
["",null,null,null,"",null,null,null,null,null,null,null,""]
["",null,null,null,"",null,null,null,null,null,null,null,""]
["",null,null,null,"",null,null,null,null,null,null,null,""]
["",null,null,null,"",null,null,null,null,null,null,null,""]
["",null,null,null,"",null,null,null,null,null,null,null,""]
["",null,null,null,"",null,null,null,null,null,null,null,""]
["",null,null,null,"",null,null,null,null,null,null,null,""]
["",null,null,null,"",null,null,null,null,null,null,null,""]
["",null,null,null,"",null,null,null,null,null,null,null,""]
["",null,null,null,"",null,null,null,null,null,null,null,""]
["",null,null,null,"",null,null,null,null,null,null,null,""]
["",null,null,null,"",null,null,null,null,null,null,null,""]
["",null,null,null,"",null,null,null,null,null,null,null,""]
["",null,null,null,"",null,null,null,null,null,null,null,""]
["",null,null,null,"",null,null,null,null,null,null,null,""]
["",null,null,null,"",null,null,null,null,null,null,null,""]
["",null,null,null,"",null,null,null,null,null,null,null,""]
["",null,null,null,"",null,null,null,null,null,null,null,""]
["",null,null,null,"",null,null,null,null,null,null,null,""]
["",null,null,null,"",null,null,null,null,null,null,null,""]
["",null,null,null,"",null,null,null,null,null,null,null,""]
["",null,null,null,"",null,null,null,null,null,null,null,""]
["",null,null,null,"",null,null,null,null,null,null,null,""]
["",null,null,null,"",null,null,null,null,null,null,null,""]
["",null,null,null,"",null,null,null,null,null,null,null,""]
["",null,null,null,"",null,null,null,null,null,null,null,""]
["",null,null,null,"",null,null,null,null,null,null,null,""]
["",null,null,null,"",null,null,null,null,null,null,null,""]
["",null,null,null,"",null,null,null,null,null,null,null,""]
[{"$f":"IF(OR(B142=\"\",C142=\"\",D142=\"\",E142=\"\",M142=\"\"),\"\",\"update_data,visible\")","v":""},null,null,null,"",null,null,null,null,null,null,null,{"$f":"IF(SUM(I142:L142)=0,\"\",SUM(I142:L142))","v":""}]
["",null,null,null,{"$f":"LEFT(D143,6)","v":""},null,null,null,null,null,null,null,""]
["",null,null,null,"",null,null,null,null,null,null,null,""]
["",null,null,null,"",null,null,null,null,null,null,null,""]
["",null,null,null,"",null,null,null,null,null,null,null,""]
["",null,null,null,"",null,null,null,null,null,null,null,""]
["",null,null,null,"",null,null,null,null,null,null,null,""]
["",null,null,null,"",null,null,null,null,null,null,null,""]
["",null,null,null,"",null,null,null,null,null,null,null,""]
["",null,null,null,"",null,null,null,null,null,null,null,""]
["",null,null,null,"",null,null,null,null,null,null,null,""]
["",null,null,null,"",null,null,null,null,null,null,null,""]
["",null,null,null,"",null,null,null,null,null,null,null,""]
["",null,null,null,"",null,null,null,null,null,null,null,""]
["",null,null,null,"",null,null,null,null,null,null,null,""]
["",null,null,null,"",null,null,null,null,null,null,null,""]
["",null,null,null,"",null,null,null,null,null,null,null,""]
["",null,null,null,"",null,null,null,null,null,null,null,""]
["",null,null,null,"",null,null,null,null,null,null,null,""]
["",null,null,null,"",null,null,null,null,null,null,null,""]
["",null,null,null,"",null,null,null,null,null,null,null,""]
["",null,null,null,"",null,null,null,null,null,null,null,""]
["",null,null,null,"",null,null,null,null,null,null,null,""]
["",null,null,null,"",null,null,null,null,null,null,null,""]
["",null,null,null,"",null,null,null,null,null,null,null,""]
["",null,null,null,"",null,null,null,null,null,null,null,""]
["",null,null,null,"",null,null,null,null,null,null,null,""]
["",null,null,null,"",null,null,null,null,null,null,null,""]
["",null,null,null,"",null,null,null,null,null,null,null,""]
["",null,null,null,"",null,null,null,null,null,null,null,""]
["",null,null,null,"",null,null,null,null,null,null,null,""]
["",null,null,null,"",null,null,null,null,null,null,null,""]
["",null,null,null,"",null,null,null,null,null,null,null,""]
["",null,null,null,"",null,null,null,null,null,null,null,""]
["",null,null,null,"",null,null,null,null,null,null,null,""]
["",null,null,null,"",null,null,null,null,null,null,null,""]
["",null,null,null,"",null,null,null,null,null,null,null,""]
["",null,null,null,"",null,null,null,null,null,null,null,""]
["",null,null,null,"",null,null,null,null,null,null,null,""]
["",null,null,null,"",null,null,null,null,null,null,null,""]
["",null,null,null,"",null,null,null,null,null,null,null,""]
["",null,null,null,"",null,null,null,null,null,null,null,""]
["",null,null,null,"",null,null,null,null,null,null,null,""]
["",null,null,null,"",null,null,null,null,null,null,null,""]
["",null,null,null,"",null,null,null,null,null,null,null,""]
["",null,null,null,"",null,null,null,null,null,null,null,""]
["",null,null,null,"",null,null,null,null,null,null,null,""]
["",null,null,null,"",null,null,null,null,null,null,null,""]
["",null,null,null,"",null,null,null,null,null,null,null,""]
["",null,null,null,"",null,null,null,null,null,null,null,""]
["",null,null,null,"",null,null,null,null,null,null,null,""]
["",null,null,null,"",null,null,null,null,null,null,null,""]
["",null,null,null,"",null,null,null,null,null,null,null,""]
["",null,null,null,"",null,null,null,null,null,null,null,""]
["",null,null,null,"",null,null,null,null,null,null,null,""]
["",null,null,null,"",null,null,null,null,null,null,null,""]
["",null,null,null,"",null,null,null,null,null,null,null,""]
["",null,null,null,"",null,null,null,null,null,null,null,""]
["",null,null,null,"",null,null,null,null,null,null,null,""]
["",null,null,null,"",null,null,null,null,null,null,null,""]
["",null,null,null,"",null,null,null,null,null,null,null,""]
["",null,null,null,"",null,null,null,null,null,null,null,""]
["",null,null,null,"",null,null,null,null,null,null,null,""]
["",null,null,null,"",null,null,null,null,null,null,null,""]
[{"$f":"IF(OR(B206=\"\",C206=\"\",D206=\"\",E206=\"\",M206=\"\"),\"\",\"update_data,visible\")","v":""},null,null,null,"",null,null,null,null,null,null,null,{"$f":"IF(SUM(I206:L206)=0,\"\",SUM(I206:L206))","v":""}]
["",null,null,null,{"$f":"LEFT(D207,6)","v":""},null,null,null,null,null,null,null,""]
["",null,null,null,"",null,null,null,null,null,null,null,""]
["",null,null,null,"",null,null,null,null,null,null,null,""]
["",null,null,null,"",null,null,null,null,null,null,null,""]
["",null,null,null,"",null,null,null,null,null,null,null,""]
["",null,null,null,"",null,null,null,null,null,null,null,""]
["",null,null,null,"",null,null,null,null,null,null,null,""]
["",null,null,null,"",null,null,null,null,null,null,null,""]
["",null,null,null,"",null,null,null,null,null,null,null,""]
["",null,null,null,"",null,null,null,null,null,null,null,""]
["",null,null,null,"",null,null,null,null,null,null,null,""]
["",null,null,null,"",null,null,null,null,null,null,null,""]
["",null,null,null,"",null,null,null,null,null,null,null,""]
["",null,null,null,"",null,null,null,null,null,null,null,""]
["",null,null,null,"",null,null,null,null,null,null,null,""]
["",null,null,null,"",null,null,null,null,null,null,null,""]
["",null,null,null,"",null,null,null,null,null,null,null,""]
["",null,null,null,"",null,null,null,null,null,null,null,""]
["",null,null,null,"",null,null,null,null,null,null,null,""]
["",null,null,null,"",null,null,null,null,null,null,null,""]
["",null,null,null,"",null,null,null,null,null,null,null,""]
["",null,null,null,"",null,null,null,null,null,null,null,""]
["",null,null,null,"",null,null,null,null,null,null,null,""]
["",null,null,null,"",null,null,null,null,null,null,null,""]
["",null,null,null,"",null,null,null,null,null,null,null,""]
["",null,null,null,"",null,null,null,null,null,null,null,""]
["",null,null,null,"",null,null,null,null,null,null,null,""]
["",null,null,null,"",null,null,null,null,null,null,null,""]
["",null,null,null,"",null,null,null,null,null,null,null,""]
["",null,null,null,"",null,null,null,null,null,null,null,""]
["",null,null,null,"",null,null,null,null,null,null,null,""]
["",null,null,null,"",null,null,null,null,null,null,null,""]
["",null,null,null,"",null,null,null,null,null,null,null,""]
["",null,null,null,"",null,null,null,null,null,null,null,""]
["",null,null,null,"",null,null,null,null,null,null,null,""]
["",null,null,null,"",null,null,null,null,null,null,null,""]
["",null,null,null,"",null,null,null,null,null,null,null,""]
["",null,null,null,"",null,null,null,null,null,null,null,""]
["",null,null,null,"",null,null,null,null,null,null,null,""]
["",null,null,null,"",null,null,null,null,null,null,null,""]
["",null,null,null,"",null,null,null,null,null,null,null,""]
["",null,null,null,"",null,null,null,null,null,null,null,""]
["",null,null,null,"",null,null,null,null,null,null,null,""]
["",null,null,null,"",null,null,null,null,null,null,null,""]
["",null,null,null,"",null,null,null,null,null,null,null,""]
["",null,null,null,"",null,null,null,null,null,null,null,""]
["",null,null,null,"",null,null,null,null,null,null,null,""]
["",null,null,null,"",null,null,null,null,null,null,null,""]
["",null,null,null,"",null,null,null,null,null,null,null,""]
["",null,null,null,"",null,null,null,null,null,null,null,""]
["",null,null,null,"",null,null,null,null,null,null,null,""]
["",null,null,null,"",null,null,null,null,null,null,null,""]
["",null,null,null,"",null,null,null,null,null,null,null,""]
["",null,null,null,"",null,null,null,null,null,null,null,""]
["",null,null,null,"",null,null,null,null,null,null,null,""]
["",null,null,null,"",null,null,null,null,null,null,null,""]
["",null,null,null,"",null,null,null,null,null,null,null,""]
["",null,null,null,"",null,null,null,null,null,null,null,""]
["",null,null,null,"",null,null,null,null,null,null,null,""]
["",null,null,null,"",null,null,null,null,null,null,null,""]
["",null,null,null,"",null,null,null,null,null,null,null,""]
["",null,null,null,"",null,null,null,null,null,null,null,""]
["",null,null,null,"",null,null,null,null,null,null,null,""]
[{"$f":"IF(OR(B270=\"\",C270=\"\",D270=\"\",E270=\"\",M270=\"\"),\"\",\"update_data,visible\")","v":""},null,null,null,"",null,null,null,null,null,null,null,{"$f":"IF(SUM(I270:L270)=0,\"\",SUM(I270:L270))","v":""}]
["",null,null,null,{"$f":"LEFT(D271,6)","v":""},null,null,null,null,null,null,null,""]
["",null,null,null,"",null,null,null,null,null,null,null,""]
["",null,null,null,"",null,null,null,null,null,null,null,""]
["",null,null,null,"",null,null,null,null,null,null,null,""]
["",null,null,null,"",null,null,null,null,null,null,null,""]
["",null,null,null,"",null,null,null,null,null,null,null,""]
["",null,null,null,"",null,null,null,null,null,null,null,""]
["",null,null,null,"",null,null,null,null,null,null,null,""]
["",null,null,null,"",null,null,null,null,null,null,null,""]
["",null,null,null,"",null,null,null,null,null,null,null,""]
["",null,null,null,"",null,null,null,null,null,null,null,""]
["",null,null,null,"",null,null,null,null,null,null,null,""]
["",null,null,null,"",null,null,null,null,null,null,null,""]
["",null,null,null,"",null,null,null,null,null,null,null,""]
["",null,null,null,"",null,null,null,null,null,null,null,""]
["",null,null,null,"",null,null,null,null,null,null,null,""]
["",null,null,null,"",null,null,null,null,null,null,null,""]
["",null,null,null,"",null,null,null,null,null,null,null,""]
["",null,null,null,"",null,null,null,null,null,null,null,""]
["",null,null,null,"",null,null,null,null,null,null,null,""]
["",null,null,null,"",null,null,null,null,null,null,null,""]
["",null,null,null,"",null,null,null,null,null,null,null,""]
["",null,null,null,"",null,null,null,null,null,null,null,""]
["",null,null,null,"",null,null,null,null,null,null,null,""]
["",null,null,null,"",null,null,null,null,null,null,null,""]
["",null,null,null,"",null,null,null,null,null,null,null,""]
["",null,null,null,"",null,null,null,null,null,null,null,""]
["",null,null,null,"",null,null,null,null,null,null,null,""]
["",null,null,null,"",null,null,null,null,null,null,null,""]
["",null,null,null,"",null,null,null,null,null,null,null,""]
["",null,null,null,"",null,null,null,null,null,null,null,""]
["",null,null,null,"",null,null,null,null,null,null,null,""]
["",null,null,null,"",null,null,null,null,null,null,null,""]
["",null,null,null,"",null,null,null,null,null,null,null,""]
["",null,null,null,"",null,null,null,null,null,null,null,""]
["",null,null,null,"",null,null,null,null,null,null,null,""]
["",null,null,null,"",null,null,null,null,null,null,null,""]
["",null,null,null,"",null,null,null,null,null,null,null,""]
["",null,null,null,"",null,null,null,null,null,null,null,""]
["",null,null,null,"",null,null,null,null,null,null,null,""]
["",null,null,null,"",null,null,null,null,null,null,null,""]
["",null,null,null,"",null,null,null,null,null,null,null,""]
["",null,null,null,"",null,null,null,null,null,null,null,""]
["",null,null,null,"",null,null,null,null,null,null,null,""]
["",null,null,null,"",null,null,null,null,null,null,null,""]
["",null,null,null,"",null,null,null,null,null,null,null,""]
["",null,null,null,"",null,null,null,null,null,null,null,""]
["",null,null,null,"",null,null,null,null,null,null,null,""]
["",null,null,null,"",null,null,null,null,null,null,null,""]
["",null,null,null,"",null,null,null,null,null,null,null,""]
["",null,null,null,"",null,null,null,null,null,null,null,""]
["",null,null,null,"",null,null,null,null,null,null,null,""]
["",null,null,null,"",null,null,null,null,null,null,null,""]
["",null,null,null,"",null,null,null,null,null,null,null,""]
["",null,null,null,"",null,null,null,null,null,null,null,""]
["",null,null,null,"",null,null,null,null,null,null,null,""]
["",null,null,null,"",null,null,null,null,null,null,null,""]
["",null,null,null,"",null,null,null,null,null,null,null,""]
["",null,null,null,"",null,null,null,null,null,null,null,""]
["",null,null,null,"",null,null,null,null,null,null,null,""]
["",null,null,null,"",null,null,null,null,null,null,null,""]
["",null,null,null,"",null,null,null,null,null,null,null,""]
["",null,null,null,"",null,null,null,null,null,null,null,""]
[{"$f":"IF(OR(B334=\"\",C334=\"\",D334=\"\",E334=\"\",M334=\"\"),\"\",\"update_data,visible\")","v":""},null,null,null,"",null,null,null,null,null,null,null,{"$f":"IF(SUM(I334:L334)=0,\"\",SUM(I334:L334))","v":""}]
["",null,null,null,{"$f":"LEFT(D335,6)","v":""},null,null,null,null,null,null,null,""]
["",null,null,null,"",null,null,null,null,null,null,null,""]
["",null,null,null,"",null,null,null,null,null,null,null,""]
["",null,null,null,"",null,null,null,null,null,null,null,""]
["",null,null,null,"",null,null,null,null,null,null,null,""]
["",null,null,null,"",null,null,null,null,null,null,null,""]
["",null,null,null,"",null,null,null,null,null,null,null,""]
["",null,null,null,"",null,null,null,null,null,null,null,""]
["",null,null,null,"",null,null,null,null,null,null,null,""]
["",null,null,null,"",null,null,null,null,null,null,null,""]
["",null,null,null,"",null,null,null,null,null,null,null,""]
["",null,null,null,"",null,null,null,null,null,null,null,""]
["",null,null,null,"",null,null,null,null,null,null,null,""]
["",null,null,null,"",null,null,null,null,null,null,null,""]
["",null,null,null,"",null,null,null,null,null,null,null,""]
["",null,null,null,"",null,null,null,null,null,null,null,""]
["",null,null,null,"",null,null,null,null,null,null,null,""]
["",null,null,null,"",null,null,null,null,null,null,null,""]
["",null,null,null,"",null,null,null,null,null,null,null,""]
["",null,null,null,"",null,null,null,null,null,null,null,""]
["",null,null,null,"",null,null,null,null,null,null,null,""]
["",null,null,null,"",null,null,null,null,null,null,null,""]
["",null,null,null,"",null,null,null,null,null,null,null,""]
["",null,null,null,"",null,null,null,null,null,null,null,""]
["",null,null,null,"",null,null,null,null,null,null,null,""]
["",null,null,null,"",null,null,null,null,null,null,null,""]
["",null,null,null,"",null,null,null,null,null,null,null,""]
["",null,null,null,"",null,null,null,null,null,null,null,""]
["",null,null,null,"",null,null,null,null,null,null,null,""]
["",null,null,null,"",null,null,null,null,null,null,null,""]
["",null,null,null,"",null,null,null,null,null,null,null,""]
["",null,null,null,"",null,null,null,null,null,null,null,""]
["",null,null,null,"",null,null,null,null,null,null,null,""]
["",null,null,null,"",null,null,null,null,null,null,null,""]
["",null,null,null,"",null,null,null,null,null,null,null,""]
["",null,null,null,"",null,null,null,null,null,null,null,""]
["",null,null,null,"",null,null,null,null,null,null,null,""]
["",null,null,null,"",null,null,null,null,null,null,null,""]
["",null,null,null,"",null,null,null,null,null,null,null,""]
["",null,null,null,"",null,null,null,null,null,null,null,""]
["",null,null,null,"",null,null,null,null,null,null,null,""]
["",null,null,null,"",null,null,null,null,null,null,null,""]
["",null,null,null,"",null,null,null,null,null,null,null,""]
["",null,null,null,"",null,null,null,null,null,null,null,""]
["",null,null,null,"",null,null,null,null,null,null,null,""]
["",null,null,null,"",null,null,null,null,null,null,null,""]
["",null,null,null,"",null,null,null,null,null,null,null,""]
["",null,null,null,"",null,null,null,null,null,null,null,""]
["",null,null,null,"",null,null,null,null,null,null,null,""]
["",null,null,null,"",null,null,null,null,null,null,null,""]
["",null,null,null,"",null,null,null,null,null,null,null,""]
["",null,null,null,"",null,null,null,null,null,null,null,""]
["",null,null,null,"",null,null,null,null,null,null,null,""]
["",null,null,null,"",null,null,null,null,null,null,null,""]
["",null,null,null,"",null,null,null,null,null,null,null,""]
["",null,null,null,"",null,null,null,null,null,null,null,""]
["",null,null,null,"",null,null,null,null,null,null,null,""]
["",null,null,null,"",null,null,null,null,null,null,null,""]
["",null,null,null,"",null,null,null,null,null,null,null,""]
["",null,null,null,"",null,null,null,null,null,null,null,""]
["",null,null,null,"",null,null,null,null,null,null,null,""]
["",null,null,null,"",null,null,null,null,null,null,null,""]
["",null,null,null,"",null,null,null,null,null,null,null,""]
[{"$f":"IF(OR(B398=\"\",C398=\"\",D398=\"\",E398=\"\",M398=\"\"),\"\",\"update_data,visible\")","v":""},null,null,null,"",null,null,null,null,null,null,null,{"$f":"IF(SUM(I398:L398)=0,\"\",SUM(I398:L398))","v":""}]
["",null,null,null,{"$f":"LEFT(D399,6)","v":""},null,null,null,null,null,null,null,""]
["",null,null,null,"",null,null,null,null,null,null,null,""]
["",null,null,null,"",null,null,null,null,null,null,null,""]
["",null,null,null,"",null,null,null,null,null,null,null,""]
["",null,null,null,"",null,null,null,null,null,null,null,""]
["",null,null,null,"",null,null,null,null,null,null,null,""]
["",null,null,null,"",null,null,null,null,null,null,null,""]
["",null,null,null,"",null,null,null,null,null,null,null,""]
["",null,null,null,"",null,null,null,null,null,null,null,""]
["",null,null,null,"",null,null,null,null,null,null,null,""]
["",null,null,null,"",null,null,null,null,null,null,null,""]
["",null,null,null,"",null,null,null,null,null,null,null,""]
["",null,null,null,"",null,null,null,null,null,null,null,""]
["",null,null,null,"",null,null,null,null,null,null,null,""]
["",null,null,null,"",null,null,null,null,null,null,null,""]
["",null,null,null,"",null,null,null,null,null,null,null,""]
["",null,null,null,"",null,null,null,null,null,null,null,""]
["",null,null,null,"",null,null,null,null,null,null,null,""]
["",null,null,null,"",null,null,null,null,null,null,null,""]
["",null,null,null,"",null,null,null,null,null,null,null,""]
["",null,null,null,"",null,null,null,null,null,null,null,""]
["",null,null,null,"",null,null,null,null,null,null,null,""]
["",null,null,null,"",null,null,null,null,null,null,null,""]
["",null,null,null,"",null,null,null,null,null,null,null,""]
["",null,null,null,"",null,null,null,null,null,null,null,""]
["",null,null,null,"",null,null,null,null,null,null,null,""]
["",null,null,null,"",null,null,null,null,null,null,null,""]
["",null,null,null,"",null,null,null,null,null,null,null,""]
["",null,null,null,"",null,null,null,null,null,null,null,""]
["",null,null,null,"",null,null,null,null,null,null,null,""]
["",null,null,null,"",null,null,null,null,null,null,null,""]
["",null,null,null,"",null,null,null,null,null,null,null,""]
["",null,null,null,"",null,null,null,null,null,null,null,""]
["",null,null,null,"",null,null,null,null,null,null,null,""]
["",null,null,null,"",null,null,null,null,null,null,null,""]
["",null,null,null,"",null,null,null,null,null,null,null,""]
["",null,null,null,"",null,null,null,null,null,null,null,""]
["",null,null,null,"",null,null,null,null,null,null,null,""]
["",null,null,null,"",null,null,null,null,null,null,null,""]
["",null,null,null,"",null,null,null,null,null,null,null,""]
["",null,null,null,"",null,null,null,null,null,null,null,""]
["",null,null,null,"",null,null,null,null,null,null,null,""]
["",null,null,null,"",null,null,null,null,null,null,null,""]
["",null,null,null,"",null,null,null,null,null,null,null,""]
["",null,null,null,"",null,null,null,null,null,null,null,""]
["",null,null,null,"",null,null,null,null,null,null,null,""]
["",null,null,null,"",null,null,null,null,null,null,null,""]
["",null,null,null,"",null,null,null,null,null,null,null,""]
["",null,null,null,"",null,null,null,null,null,null,null,""]
["",null,null,null,"",null,null,null,null,null,null,null,""]
["",null,null,null,"",null,null,null,null,null,null,null,""]
["",null,null,null,"",null,null,null,null,null,null,null,""]
["",null,null,null,"",null,null,null,null,null,null,null,""]
["",null,null,null,"",null,null,null,null,null,null,null,""]
["",null,null,null,"",null,null,null,null,null,null,null,""]
["",null,null,null,"",null,null,null,null,null,null,null,""]
["",null,null,null,"",null,null,null,null,null,null,null,""]
["",null,null,null,"",null,null,null,null,null,null,null,""]
["",null,null,null,"",null,null,null,null,null,null,null,""]
["",null,null,null,"",null,null,null,null,null,null,null,""]
["",null,null,null,"",null,null,null,null,null,null,null,""]
["",null,null,null,"",null,null,null,null,null,null,null,""]
["",null,null,null,"",null,null,null,null,null,null,null,""]
[{"$f":"IF(OR(B462=\"\",C462=\"\",D462=\"\",E462=\"\",M462=\"\"),\"\",\"update_data,visible\")","v":""},null,null,null,"",null,null,null,null,null,null,null,{"$f":"IF(SUM(I462:L462)=0,\"\",SUM(I462:L462))","v":""}]
["",null,null,null,{"$f":"LEFT(D463,6)","v":""},null,null,null,null,null,null,null,""]
["",null,null,null,"",null,null,null,null,null,null,null,""]
["",null,null,null,"",null,null,null,null,null,null,null,""]
["",null,null,null,"",null,null,null,null,null,null,null,""]
["",null,null,null,"",null,null,null,null,null,null,null,""]
["",null,null,null,"",null,null,null,null,null,null,null,""]
["",null,null,null,"",null,null,null,null,null,null,null,""]
["",null,null,null,"",null,null,null,null,null,null,null,""]
["",null,null,null,"",null,null,null,null,null,null,null,""]
["",null,null,null,"",null,null,null,null,null,null,null,""]
["",null,null,null,"",null,null,null,null,null,null,null,""]
["",null,null,null,"",null,null,null,null,null,null,null,""]
["",null,null,null,"",null,null,null,null,null,null,null,""]
["",null,null,null,"",null,null,null,null,null,null,null,""]
["",null,null,null,"",null,null,null,null,null,null,null,""]
["",null,null,null,"",null,null,null,null,null,null,null,""]
["",null,null,null,"",null,null,null,null,null,null,null,""]
["",null,null,null,"",null,null,null,null,null,null,null,""]
["",null,null,null,"",null,null,null,null,null,null,null,""]
["",null,null,null,"",null,null,null,null,null,null,null,""]
["",null,null,null,"",null,null,null,null,null,null,null,""]
["",null,null,null,"",null,null,null,null,null,null,null,""]
["",null,null,null,"",null,null,null,null,null,null,null,""]
["",null,null,null,"",null,null,null,null,null,null,null,""]
["",null,null,null,"",null,null,null,null,null,null,null,""]
["",null,null,null,"",null,null,null,null,null,null,null,""]
["",null,null,null,"",null,null,null,null,null,null,null,""]
["",null,null,null,"",null,null,null,null,null,null,null,""]
["",null,null,null,"",null,null,null,null,null,null,null,""]
["",null,null,null,"",null,null,null,null,null,null,null,""]
["",null,null,null,"",null,null,null,null,null,null,null,""]
["",null,null,null,"",null,null,null,null,null,null,null,""]
["",null,null,null,"",null,null,null,null,null,null,null,""]
["",null,null,null,"",null,null,null,null,null,null,null,""]
["",null,null,null,"",null,null,null,null,null,null,null,""]
["",null,null,null,"",null,null,null,null,null,null,null,""]
["",null,null,null,"",null,null,null,null,null,null,null,""]
["",null,null,null,"",null,null,null,null,null,null,null,""]
["",null,null,null,"",null,null,null,null,null,null,null,""]
["",null,null,null,"",null,null,null,null,null,null,null,""]
["",null,null,null,"",null,null,null,null,null,null,null,""]
["",null,null,null,"",null,null,null,null,null,null,null,""]
["",null,null,null,"",null,null,null,null,null,null,null,""]
["",null,null,null,"",null,null,null,null,null,null,null,""]
["",null,null,null,"",null,null,null,null,null,null,null,""]
["",null,null,null,"",null,null,null,null,null,null,null,""]
["",null,null,null,"",null,null,null,null,null,null,null,""]
["",null,null,null,"",null,null,null,null,null,null,null,""]
["",null,null,null,"",null,null,null,null,null,null,null,""]
["",null,null,null,"",null,null,null,null,null,null,null,""]
["",null,null,null,"",null,null,null,null,null,null,null,""]
["",null,null,null,"",null,null,null,null,null,null,null,""]
["",null,null,null,"",null,null,null,null,null,null,null,""]
["",null,null,null,"",null,null,null,null,null,null,null,""]
["",null,null,null,"",null,null,null,null,null,null,null,""]
["",null,null,null,"",null,null,null,null,null,null,null,""]
["",null,null,null,"",null,null,null,null,null,null,null,""]
["",null,null,null,"",null,null,null,null,null,null,null,""]
["",null,null,null,"",null,null,null,null,null,null,null,""]
["",null,null,null,"",null,null,null,null,null,null,null,""]
["",null,null,null,"",null,null,null,null,null,null,null,""]
["",null,null,null,"",null,null,null,null,null,null,null,""]
["",null,null,null,"",null,null,null,null,null,null,null,""]
[{"$f":"IF(OR(B526=\"\",C526=\"\",D526=\"\",E526=\"\",M526=\"\"),\"\",\"update_data,visible\")","v":""},null,null,null,"",null,null,null,null,null,null,null,{"$f":"IF(SUM(I526:L526)=0,\"\",SUM(I526:L526))","v":""}]
["",null,null,null,{"$f":"LEFT(D527,6)","v":""},null,null,null,null,null,null,null,""]
["",null,null,null,"",null,null,null,null,null,null,null,""]
["",null,null,null,"",null,null,null,null,null,null,null,""]
["",null,null,null,"",null,null,null,null,null,null,null,""]
["",null,null,null,"",null,null,null,null,null,null,null,""]
["",null,null,null,"",null,null,null,null,null,null,null,""]
["",null,null,null,"",null,null,null,null,null,null,null,""]
["",null,null,null,"",null,null,null,null,null,null,null,""]
["",null,null,null,"",null,null,null,null,null,null,null,""]
["",null,null,null,"",null,null,null,null,null,null,null,""]
["",null,null,null,"",null,null,null,null,null,null,null,""]
["",null,null,null,"",null,null,null,null,null,null,null,""]
["",null,null,null,"",null,null,null,null,null,null,null,""]
["",null,null,null,"",null,null,null,null,null,null,null,""]
["",null,null,null,"",null,null,null,null,null,null,null,""]
["",null,null,null,"",null,null,null,null,null,null,null,""]
["",null,null,null,"",null,null,null,null,null,null,null,""]
["",null,null,null,"",null,null,null,null,null,null,null,""]
["",null,null,null,"",null,null,null,null,null,null,null,""]
["",null,null,null,"",null,null,null,null,null,null,null,""]
["",null,null,null,"",null,null,null,null,null,null,null,""]
["",null,null,null,"",null,null,null,null,null,null,null,""]
["",null,null,null,"",null,null,null,null,null,null,null,""]
["",null,null,null,"",null,null,null,null,null,null,null,""]
["",null,null,null,"",null,null,null,null,null,null,null,""]
["",null,null,null,"",null,null,null,null,null,null,null,""]
["",null,null,null,"",null,null,null,null,null,null,null,""]
["",null,null,null,"",null,null,null,null,null,null,null,""]
["",null,null,null,"",null,null,null,null,null,null,null,""]
["",null,null,null,"",null,null,null,null,null,null,null,""]
["",null,null,null,"",null,null,null,null,null,null,null,""]
["",null,null,null,"",null,null,null,null,null,null,null,""]
["",null,null,null,"",null,null,null,null,null,null,null,""]
["",null,null,null,"",null,null,null,null,null,null,null,""]
["",null,null,null,"",null,null,null,null,null,null,null,""]
["",null,null,null,"",null,null,null,null,null,null,null,""]
["",null,null,null,"",null,null,null,null,null,null,null,""]
["",null,null,null,"",null,null,null,null,null,null,null,""]
["",null,null,null,"",null,null,null,null,null,null,null,""]
["",null,null,null,"",null,null,null,null,null,null,null,""]
["",null,null,null,"",null,null,null,null,null,null,null,""]
["",null,null,null,"",null,null,null,null,null,null,null,""]
["",null,null,null,"",null,null,null,null,null,null,null,""]
["",null,null,null,"",null,null,null,null,null,null,null,""]
["",null,null,null,"",null,null,null,null,null,null,null,""]
["",null,null,null,"",null,null,null,null,null,null,null,""]
["",null,null,null,"",null,null,null,null,null,null,null,""]
["",null,null,null,"",null,null,null,null,null,null,null,""]
["",null,null,null,"",null,null,null,null,null,null,null,""]
["",null,null,null,"",null,null,null,null,null,null,null,""]
["",null,null,null,"",null,null,null,null,null,null,null,""]
["",null,null,null,"",null,null,null,null,null,null,null,""]
["",null,null,null,"",null,null,null,null,null,null,null,""]
["",null,null,null,"",null,null,null,null,null,null,null,""]
["",null,null,null,"",null,null,null,null,null,null,null,""]
["",null,null,null,"",null,null,null,null,null,null,null,""]
["",null,null,null,"",null,null,null,null,null,null,null,""]
["",null,null,null,"",null,null,null,null,null,null,null,""]
["",null,null,null,"",null,null,null,null,null,null,null,""]
["",null,null,null,"",null,null,null,null,null,null,null,""]
["",null,null,null,"",null,null,null,null,null,null,null,""]
["",null,null,null,"",null,null,null,null,null,null,null,""]
["",null,null,null,"",null,null,null,null,null,null,null,""]
[{"$f":"IF(OR(B590=\"\",C590=\"\",D590=\"\",E590=\"\",M590=\"\"),\"\",\"update_data,visible\")","v":""},null,null,null,"",null,null,null,null,null,null,null,{"$f":"IF(SUM(I590:L590)=0,\"\",SUM(I590:L590))","v":""}]
["",null,null,null,{"$f":"LEFT(D591,6)","v":""},null,null,null,null,null,null,null,""]
["",null,null,null,"",null,null,null,null,null,null,null,""]
["",null,null,null,"",null,null,null,null,null,null,null,""]
["",null,null,null,"",null,null,null,null,null,null,null,""]
["",null,null,null,"",null,null,null,null,null,null,null,""]
["",null,null,null,"",null,null,null,null,null,null,null,""]
["",null,null,null,"",null,null,null,null,null,null,null,""]
["",null,null,null,"",null,null,null,null,null,null,null,""]
["",null,null,null,"",null,null,null,null,null,null,null,""]
["",null,null,null,"",null,null,null,null,null,null,null,""]
["",null,null,null,"",null,null,null,null,null,null,null,""]
["",null,null,null,"",null,null,null,null,null,null,null,""]
["",null,null,null,"",null,null,null,null,null,null,null,""]
["",null,null,null,"",null,null,null,null,null,null,null,""]
["",null,null,null,"",null,null,null,null,null,null,null,""]
["",null,null,null,"",null,null,null,null,null,null,null,""]
["",null,null,null,"",null,null,null,null,null,null,null,""]
["",null,null,null,"",null,null,null,null,null,null,null,""]
["",null,null,null,"",null,null,null,null,null,null,null,""]
["",null,null,null,"",null,null,null,null,null,null,null,""]
["",null,null,null,"",null,null,null,null,null,null,null,""]
["",null,null,null,"",null,null,null,null,null,null,null,""]
["",null,null,null,"",null,null,null,null,null,null,null,""]
["",null,null,null,"",null,null,null,null,null,null,null,""]
["",null,null,null,"",null,null,null,null,null,null,null,""]
["",null,null,null,"",null,null,null,null,null,null,null,""]
["",null,null,null,"",null,null,null,null,null,null,null,""]
["",null,null,null,"",null,null,null,null,null,null,null,""]
["",null,null,null,"",null,null,null,null,null,null,null,""]
["",null,null,null,"",null,null,null,null,null,null,null,""]
["",null,null,null,"",null,null,null,null,null,null,null,""]
["",null,null,null,"",null,null,null,null,null,null,null,""]
["",null,null,null,"",null,null,null,null,null,null,null,""]
["",null,null,null,"",null,null,null,null,null,null,null,""]
["",null,null,null,"",null,null,null,null,null,null,null,""]
["",null,null,null,"",null,null,null,null,null,null,null,""]
["",null,null,null,"",null,null,null,null,null,null,null,""]
["",null,null,null,"",null,null,null,null,null,null,null,""]
["",null,null,null,"",null,null,null,null,null,null,null,""]
["",null,null,null,"",null,null,null,null,null,null,null,""]
["",null,null,null,"",null,null,null,null,null,null,null,""]
["",null,null,null,"",null,null,null,null,null,null,null,""]
["",null,null,null,"",null,null,null,null,null,null,null,""]
["",null,null,null,"",null,null,null,null,null,null,null,""]
["",null,null,null,"",null,null,null,null,null,null,null,""]
["",null,null,null,"",null,null,null,null,null,null,null,""]
["",null,null,null,"",null,null,null,null,null,null,null,""]
["",null,null,null,"",null,null,null,null,null,null,null,""]
["",null,null,null,"",null,null,null,null,null,null,null,""]
["",null,null,null,"",null,null,null,null,null,null,null,""]
["",null,null,null,"",null,null,null,null,null,null,null,""]
["",null,null,null,"",null,null,null,null,null,null,null,""]
["",null,null,null,"",null,null,null,null,null,null,null,""]
["",null,null,null,"",null,null,null,null,null,null,null,""]
["",null,null,null,"",null,null,null,null,null,null,null,""]
["",null,null,null,"",null,null,null,null,null,null,null,""]
["",null,null,null,"",null,null,null,null,null,null,null,""]
["",null,null,null,"",null,null,null,null,null,null,null,""]
["",null,null,null,"",null,null,null,null,null,null,null,""]
["",null,null,null,"",null,null,null,null,null,null,null,""]
["",null,null,null,"",null,null,null,null,null,null,null,""]
["",null,null,null,"",null,null,null,null,null,null,null,""]
["",null,null,null,"",null,null,null,null,null,null,null,""]
[{"$f":"IF(OR(B654=\"\",C654=\"\",D654=\"\",E654=\"\",M654=\"\"),\"\",\"update_data,visible\")","v":""},null,null,null,"",null,null,null,null,null,null,null,{"$f":"IF(SUM(I654:L654)=0,\"\",SUM(I654:L654))","v":""}]
["",null,null,null,{"$f":"LEFT(D655,6)","v":""},null,null,null,null,null,null,null,""]
["",null,null,null,"",null,null,null,null,null,null,null,""]
["",null,null,null,"",null,null,null,null,null,null,null,""]
["",null,null,null,"",null,null,null,null,null,null,null,""]
["",null,null,null,"",null,null,null,null,null,null,null,""]
["",null,null,null,"",null,null,null,null,null,null,null,""]
["",null,null,null,"",null,null,null,null,null,null,null,""]
["",null,null,null,"",null,null,null,null,null,null,null,""]
["",null,null,null,"",null,null,null,null,null,null,null,""]
["",null,null,null,"",null,null,null,null,null,null,null,""]
["",null,null,null,"",null,null,null,null,null,null,null,""]
["",null,null,null,"",null,null,null,null,null,null,null,""]
["",null,null,null,"",null,null,null,null,null,null,null,""]
["",null,null,null,"",null,null,null,null,null,null,null,""]
["",null,null,null,"",null,null,null,null,null,null,null,""]
["",null,null,null,"",null,null,null,null,null,null,null,""]
["",null,null,null,"",null,null,null,null,null,null,null,""]
["",null,null,null,"",null,null,null,null,null,null,null,""]
["",null,null,null,"",null,null,null,null,null,null,null,""]
["",null,null,null,"",null,null,null,null,null,null,null,""]
["",null,null,null,"",null,null,null,null,null,null,null,""]
["",null,null,null,"",null,null,null,null,null,null,null,""]
["",null,null,null,"",null,null,null,null,null,null,null,""]
["",null,null,null,"",null,null,null,null,null,null,null,""]
["",null,null,null,"",null,null,null,null,null,null,null,""]
["",null,null,null,"",null,null,null,null,null,null,null,""]
["",null,null,null,"",null,null,null,null,null,null,null,""]
["",null,null,null,"",null,null,null,null,null,null,null,""]
["",null,null,null,"",null,null,null,null,null,null,null,""]
["",null,null,null,"",null,null,null,null,null,null,null,""]
["",null,null,null,"",null,null,null,null,null,null,null,""]
["",null,null,null,"",null,null,null,null,null,null,null,""]
["",null,null,null,"",null,null,null,null,null,null,null,""]
["",null,null,null,"",null,null,null,null,null,null,null,""]
["",null,null,null,"",null,null,null,null,null,null,null,""]
["",null,null,null,"",null,null,null,null,null,null,null,""]
["",null,null,null,"",null,null,null,null,null,null,null,""]
["",null,null,null,"",null,null,null,null,null,null,null,""]
["",null,null,null,"",null,null,null,null,null,null,null,""]
["",null,null,null,"",null,null,null,null,null,null,null,""]
["",null,null,null,"",null,null,null,null,null,null,null,""]
["",null,null,null,"",null,null,null,null,null,null,null,""]
["",null,null,null,"",null,null,null,null,null,null,null,""]
["",null,null,null,"",null,null,null,null,null,null,null,""]
["",null,null,null,"",null,null,null,null,null,null,null,""]
["",null,null,null,"",null,null,null,null,null,null,null,""]
["",null,null,null,"",null,null,null,null,null,null,null,""]
["",null,null,null,"",null,null,null,null,null,null,null,""]
["",null,null,null,"",null,null,null,null,null,null,null,""]
["",null,null,null,"",null,null,null,null,null,null,null,""]
["",null,null,null,"",null,null,null,null,null,null,null,""]
["",null,null,null,"",null,null,null,null,null,null,null,""]
["",null,null,null,"",null,null,null,null,null,null,null,""]
["",null,null,null,"",null,null,null,null,null,null,null,""]
["",null,null,null,"",null,null,null,null,null,null,null,""]
["",null,null,null,"",null,null,null,null,null,null,null,""]
["",null,null,null,"",null,null,null,null,null,null,null,""]
["",null,null,null,"",null,null,null,null,null,null,null,""]
["",null,null,null,"",null,null,null,null,null,null,null,""]
["",null,null,null,"",null,null,null,null,null,null,null,""]
["",null,null,null,"",null,null,null,null,null,null,null,""]
["",null,null,null,"",null,null,null,null,null,null,null,""]
["",null,null,null,"",null,null,null,null,null,null,null,""]
[{"$f":"IF(OR(B718=\"\",C718=\"\",D718=\"\",E718=\"\",M718=\"\"),\"\",\"update_data,visible\")","v":""},null,null,null,"",null,null,null,null,null,null,null,{"$f":"IF(SUM(I718:L718)=0,\"\",SUM(I718:L718))","v":""}]
["",null,null,null,{"$f":"LEFT(D719,6)","v":""},null,null,null,null,null,null,null,""]
["",null,null,null,"",null,null,null,null,null,null,null,""]
["",null,null,null,"",null,null,null,null,null,null,null,""]
["",null,null,null,"",null,null,null,null,null,null,null,""]
["",null,null,null,"",null,null,null,null,null,null,null,""]
["",null,null,null,"",null,null,null,null,null,null,null,""]
["",null,null,null,"",null,null,null,null,null,null,null,""]
["",null,null,null,"",null,null,null,null,null,null,null,""]
["",null,null,null,"",null,null,null,null,null,null,null,""]
["",null,null,null,"",null,null,null,null,null,null,null,""]
["",null,null,null,"",null,null,null,null,null,null,null,""]
["",null,null,null,"",null,null,null,null,null,null,null,""]
["",null,null,null,"",null,null,null,null,null,null,null,""]
["",null,null,null,"",null,null,null,null,null,null,null,""]
["",null,null,null,"",null,null,null,null,null,null,null,""]
["",null,null,null,"",null,null,null,null,null,null,null,""]
["",null,null,null,"",null,null,null,null,null,null,null,""]
["",null,null,null,"",null,null,null,null,null,null,null,""]
["",null,null,null,"",null,null,null,null,null,null,null,""]
["",null,null,null,"",null,null,null,null,null,null,null,""]
["",null,null,null,"",null,null,null,null,null,null,null,""]
["",null,null,null,"",null,null,null,null,null,null,null,""]
["",null,null,null,"",null,null,null,null,null,null,null,""]
["",null,null,null,"",null,null,null,null,null,null,null,""]
["",null,null,null,"",null,null,null,null,null,null,null,""]
["",null,null,null,"",null,null,null,null,null,null,null,""]
["",null,null,null,"",null,null,null,null,null,null,null,""]
["",null,null,null,"",null,null,null,null,null,null,null,""]
["",null,null,null,"",null,null,null,null,null,null,null,""]
["",null,null,null,"",null,null,null,null,null,null,null,""]
["",null,null,null,"",null,null,null,null,null,null,null,""]
["",null,null,null,"",null,null,null,null,null,null,null,""]
["",null,null,null,"",null,null,null,null,null,null,null,""]
["",null,null,null,"",null,null,null,null,null,null,null,""]
["",null,null,null,"",null,null,null,null,null,null,null,""]
["",null,null,null,"",null,null,null,null,null,null,null,""]
["",null,null,null,"",null,null,null,null,null,null,null,""]
["",null,null,null,"",null,null,null,null,null,null,null,""]
["",null,null,null,"",null,null,null,null,null,null,null,""]
["",null,null,null,"",null,null,null,null,null,null,null,""]
["",null,null,null,"",null,null,null,null,null,null,null,""]
["",null,null,null,"",null,null,null,null,null,null,null,""]
["",null,null,null,"",null,null,null,null,null,null,null,""]
["",null,null,null,"",null,null,null,null,null,null,null,""]
["",null,null,null,"",null,null,null,null,null,null,null,""]
["",null,null,null,"",null,null,null,null,null,null,null,""]
["",null,null,null,"",null,null,null,null,null,null,null,""]
["",null,null,null,"",null,null,null,null,null,null,null,""]
["",null,null,null,"",null,null,null,null,null,null,null,""]
["",null,null,null,"",null,null,null,null,null,null,null,""]
["",null,null,null,"",null,null,null,null,null,null,null,""]
["",null,null,null,"",null,null,null,null,null,null,null,""]
["",null,null,null,"",null,null,null,null,null,null,null,""]
["",null,null,null,"",null,null,null,null,null,null,null,""]
["",null,null,null,"",null,null,null,null,null,null,null,""]
["",null,null,null,"",null,null,null,null,null,null,null,""]
["",null,null,null,"",null,null,null,null,null,null,null,""]
["",null,null,null,"",null,null,null,null,null,null,null,""]
["",null,null,null,"",null,null,null,null,null,null,null,""]
["",null,null,null,"",null,null,null,null,null,null,null,""]
["",null,null,null,"",null,null,null,null,null,null,null,""]
["",null,null,null,"",null,null,null,null,null,null,null,""]
["",null,null,null,"",null,null,null,null,null,null,null,""]
[{"$f":"IF(OR(B782=\"\",C782=\"\",D782=\"\",E782=\"\",M782=\"\"),\"\",\"update_data,visible\")","v":""},null,null,null,"",null,null,null,null,null,null,null,{"$f":"IF(SUM(I782:L782)=0,\"\",SUM(I782:L782))","v":""}]
["",null,null,null,{"$f":"LEFT(D783,6)","v":""},null,null,null,null,null,null,null,""]
["",null,null,null,"",null,null,null,null,null,null,null,""]
["",null,null,null,"",null,null,null,null,null,null,null,""]
["",null,null,null,"",null,null,null,null,null,null,null,""]
["",null,null,null,"",null,null,null,null,null,null,null,""]
["",null,null,null,"",null,null,null,null,null,null,null,""]
["",null,null,null,"",null,null,null,null,null,null,null,""]
["",null,null,null,"",null,null,null,null,null,null,null,""]
["",null,null,null,"",null,null,null,null,null,null,null,""]
["",null,null,null,"",null,null,null,null,null,null,null,""]
["",null,null,null,"",null,null,null,null,null,null,null,""]
["",null,null,null,"",null,null,null,null,null,null,null,""]
["",null,null,null,"",null,null,null,null,null,null,null,""]
["",null,null,null,"",null,null,null,null,null,null,null,""]
["",null,null,null,"",null,null,null,null,null,null,null,""]
["",null,null,null,"",null,null,null,null,null,null,null,""]
["",null,null,null,"",null,null,null,null,null,null,null,""]
["",null,null,null,"",null,null,null,null,null,null,null,""]
["",null,null,null,"",null,null,null,null,null,null,null,""]
["",null,null,null,"",null,null,null,null,null,null,null,""]
["",null,null,null,"",null,null,null,null,null,null,null,""]
["",null,null,null,"",null,null,null,null,null,null,null,""]
["",null,null,null,"",null,null,null,null,null,null,null,""]
["",null,null,null,"",null,null,null,null,null,null,null,""]
["",null,null,null,"",null,null,null,null,null,null,null,""]
["",null,null,null,"",null,null,null,null,null,null,null,""]
["",null,null,null,"",null,null,null,null,null,null,null,""]
["",null,null,null,"",null,null,null,null,null,null,null,""]
["",null,null,null,"",null,null,null,null,null,null,null,""]
["",null,null,null,"",null,null,null,null,null,null,null,""]
["",null,null,null,"",null,null,null,null,null,null,null,""]
["",null,null,null,"",null,null,null,null,null,null,null,""]
["",null,null,null,"",null,null,null,null,null,null,null,""]
["",null,null,null,"",null,null,null,null,null,null,null,""]
["",null,null,null,"",null,null,null,null,null,null,null,""]
["",null,null,null,"",null,null,null,null,null,null,null,""]
["",null,null,null,"",null,null,null,null,null,null,null,""]
["",null,null,null,"",null,null,null,null,null,null,null,""]
["",null,null,null,"",null,null,null,null,null,null,null,""]
["",null,null,null,"",null,null,null,null,null,null,null,""]
["",null,null,null,"",null,null,null,null,null,null,null,""]
["",null,null,null,"",null,null,null,null,null,null,null,""]
["",null,null,null,"",null,null,null,null,null,null,null,""]
["",null,null,null,"",null,null,null,null,null,null,null,""]
["",null,null,null,"",null,null,null,null,null,null,null,""]
["",null,null,null,"",null,null,null,null,null,null,null,""]
["",null,null,null,"",null,null,null,null,null,null,null,""]
["",null,null,null,"",null,null,null,null,null,null,null,""]
["",null,null,null,"",null,null,null,null,null,null,null,""]
["",null,null,null,"",null,null,null,null,null,null,null,""]
["",null,null,null,"",null,null,null,null,null,null,null,""]
["",null,null,null,"",null,null,null,null,null,null,null,""]
["",null,null,null,"",null,null,null,null,null,null,null,""]
["",null,null,null,"",null,null,null,null,null,null,null,""]
["",null,null,null,"",null,null,null,null,null,null,null,""]
["",null,null,null,"",null,null,null,null,null,null,null,""]
["",null,null,null,"",null,null,null,null,null,null,null,""]
["",null,null,null,"",null,null,null,null,null,null,null,""]
["",null,null,null,"",null,null,null,null,null,null,null,""]
["",null,null,null,"",null,null,null,null,null,null,null,""]
["",null,null,null,"",null,null,null,null,null,null,null,""]
["",null,null,null,"",null,null,null,null,null,null,null,""]
["",null,null,null,"",null,null,null,null,null,null,null,""]
[{"$f":"IF(OR(B846=\"\",C846=\"\",D846=\"\",E846=\"\",M846=\"\"),\"\",\"update_data,visible\")","v":""},null,null,null,"",null,null,null,null,null,null,null,{"$f":"IF(SUM(I846:L846)=0,\"\",SUM(I846:L846))","v":""}]
["",null,null,null,{"$f":"LEFT(D847,6)","v":""},null,null,null,null,null,null,null,""]
["",null,null,null,"",null,null,null,null,null,null,null,""]
["",null,null,null,"",null,null,null,null,null,null,null,""]
["",null,null,null,"",null,null,null,null,null,null,null,""]
["",null,null,null,"",null,null,null,null,null,null,null,""]
["",null,null,null,"",null,null,null,null,null,null,null,""]
["",null,null,null,"",null,null,null,null,null,null,null,""]
["",null,null,null,"",null,null,null,null,null,null,null,""]
["",null,null,null,"",null,null,null,null,null,null,null,""]
["",null,null,null,"",null,null,null,null,null,null,null,""]
["",null,null,null,"",null,null,null,null,null,null,null,""]
["",null,null,null,"",null,null,null,null,null,null,null,""]
["",null,null,null,"",null,null,null,null,null,null,null,""]
["",null,null,null,"",null,null,null,null,null,null,null,""]
["",null,null,null,"",null,null,null,null,null,null,null,""]
["",null,null,null,"",null,null,null,null,null,null,null,""]
["",null,null,null,"",null,null,null,null,null,null,null,""]
["",null,null,null,"",null,null,null,null,null,null,null,""]
["",null,null,null,"",null,null,null,null,null,null,null,""]
["",null,null,null,"",null,null,null,null,null,null,null,""]
["",null,null,null,"",null,null,null,null,null,null,null,""]
["",null,null,null,"",null,null,null,null,null,null,null,""]
["",null,null,null,"",null,null,null,null,null,null,null,""]
["",null,null,null,"",null,null,null,null,null,null,null,""]
["",null,null,null,"",null,null,null,null,null,null,null,""]
["",null,null,null,"",null,null,null,null,null,null,null,""]
["",null,null,null,"",null,null,null,null,null,null,null,""]
["",null,null,null,"",null,null,null,null,null,null,null,""]
["",null,null,null,"",null,null,null,null,null,null,null,""]
["",null,null,null,"",null,null,null,null,null,null,null,""]
["",null,null,null,"",null,null,null,null,null,null,null,""]
["",null,null,null,"",null,null,null,null,null,null,null,""]
["",null,null,null,"",null,null,null,null,null,null,null,""]
["",null,null,null,"",null,null,null,null,null,null,null,""]
["",null,null,null,"",null,null,null,null,null,null,null,""]
["",null,null,null,"",null,null,null,null,null,null,null,""]
["",null,null,null,"",null,null,null,null,null,null,null,""]
["",null,null,null,"",null,null,null,null,null,null,null,""]
["",null,null,null,"",null,null,null,null,null,null,null,""]
["",null,null,null,"",null,null,null,null,null,null,null,""]
["",null,null,null,"",null,null,null,null,null,null,null,""]
["",null,null,null,"",null,null,null,null,null,null,null,""]
["",null,null,null,"",null,null,null,null,null,null,null,""]
["",null,null,null,"",null,null,null,null,null,null,null,""]
["",null,null,null,"",null,null,null,null,null,null,null,""]
["",null,null,null,"",null,null,null,null,null,null,null,""]
["",null,null,null,"",null,null,null,null,null,null,null,""]
["",null,null,null,"",null,null,null,null,null,null,null,""]
["",null,null,null,"",null,null,null,null,null,null,null,""]
["",null,null,null,"",null,null,null,null,null,null,null,""]
["",null,null,null,"",null,null,null,null,null,null,null,""]
["",null,null,null,"",null,null,null,null,null,null,null,""]
["",null,null,null,"",null,null,null,null,null,null,null,""]
["",null,null,null,"",null,null,null,null,null,null,null,""]
["",null,null,null,"",null,null,null,null,null,null,null,""]
["",null,null,null,"",null,null,null,null,null,null,null,""]
["",null,null,null,"",null,null,null,null,null,null,null,""]
["",null,null,null,"",null,null,null,null,null,null,null,""]
["",null,null,null,"",null,null,null,null,null,null,null,""]
["",null,null,null,"",null,null,null,null,null,null,null,""]
["",null,null,null,"",null,null,null,null,null,null,null,""]
["",null,null,null,"",null,null,null,null,null,null,null,""]
["",null,null,null,"",null,null,null,null,null,null,null,""]
[{"$f":"IF(OR(B910=\"\",C910=\"\",D910=\"\",E910=\"\",M910=\"\"),\"\",\"update_data,visible\")","v":""},null,null,null,"",null,null,null,null,null,null,null,{"$f":"IF(SUM(I910:L910)=0,\"\",SUM(I910:L910))","v":""}]
["",null,null,null,{"$f":"LEFT(D911,6)","v":""},null,null,null,null,null,null,null,""]
["",null,null,null,"",null,null,null,null,null,null,null,""]
["",null,null,null,"",null,null,null,null,null,null,null,""]
["",null,null,null,"",null,null,null,null,null,null,null,""]
["",null,null,null,"",null,null,null,null,null,null,null,""]
["",null,null,null,"",null,null,null,null,null,null,null,""]
["",null,null,null,"",null,null,null,null,null,null,null,""]
["",null,null,null,"",null,null,null,null,null,null,null,""]
["",null,null,null,"",null,null,null,null,null,null,null,""]
["",null,null,null,"",null,null,null,null,null,null,null,""]
["",null,null,null,"",null,null,null,null,null,null,null,""]
["",null,null,null,"",null,null,null,null,null,null,null,""]
["",null,null,null,"",null,null,null,null,null,null,null,""]
["",null,null,null,"",null,null,null,null,null,null,null,""]
["",null,null,null,"",null,null,null,null,null,null,null,""]
["",null,null,null,"",null,null,null,null,null,null,null,""]
["",null,null,null,"",null,null,null,null,null,null,null,""]
["",null,null,null,"",null,null,null,null,null,null,null,""]
["",null,null,null,"",null,null,null,null,null,null,null,""]
["",null,null,null,"",null,null,null,null,null,null,null,""]
["",null,null,null,"",null,null,null,null,null,null,null,""]
["",null,null,null,"",null,null,null,null,null,null,null,""]
["",null,null,null,"",null,null,null,null,null,null,null,""]
["",null,null,null,"",null,null,null,null,null,null,null,""]
["",null,null,null,"",null,null,null,null,null,null,null,""]
["",null,null,null,"",null,null,null,null,null,null,null,""]
["",null,null,null,"",null,null,null,null,null,null,null,""]
["",null,null,null,"",null,null,null,null,null,null,null,""]
["",null,null,null,"",null,null,null,null,null,null,null,""]
["",null,null,null,"",null,null,null,null,null,null,null,""]
["",null,null,null,"",null,null,null,null,null,null,null,""]
["",null,null,null,"",null,null,null,null,null,null,null,""]
["",null,null,null,"",null,null,null,null,null,null,null,""]
["",null,null,null,"",null,null,null,null,null,null,null,""]
["",null,null,null,"",null,null,null,null,null,null,null,""]
["",null,null,null,"",null,null,null,null,null,null,null,""]
["",null,null,null,"",null,null,null,null,null,null,null,""]
["",null,null,null,"",null,null,null,null,null,null,null,""]
["",null,null,null,"",null,null,null,null,null,null,null,""]
["",null,null,null,"",null,null,null,null,null,null,null,""]
["",null,null,null,"",null,null,null,null,null,null,null,""]
["",null,null,null,"",null,null,null,null,null,null,null,""]
["",null,null,null,"",null,null,null,null,null,null,null,""]
["",null,null,null,"",null,null,null,null,null,null,null,""]
["",null,null,null,"",null,null,null,null,null,null,null,""]
["",null,null,null,"",null,null,null,null,null,null,null,""]
["",null,null,null,"",null,null,null,null,null,null,null,""]
["",null,null,null,"",null,null,null,null,null,null,null,""]
["",null,null,null,"",null,null,null,null,null,null,null,""]
["",null,null,null,"",null,null,null,null,null,null,null,""]
["",null,null,null,"",null,null,null,null,null,null,null,""]
["",null,null,null,"",null,null,null,null,null,null,null,""]
["",null,null,null,"",null,null,null,null,null,null,null,""]
["",null,null,null,"",null,null,null,null,null,null,null,""]
["",null,null,null,"",null,null,null,null,null,null,null,""]
["",null,null,null,"",null,null,null,null,null,null,null,""]
["",null,null,null,"",null,null,null,null,null,null,null,""]
["",null,null,null,"",null,null,null,null,null,null,null,""]
["",null,null,null,"",null,null,null,null,null,null,null,""]
["",null,null,null,"",null,null,null,null,null,null,null,""]
["",null,null,null,"",null,null,null,null,null,null,null,""]
["",null,null,null,"",null,null,null,null,null,null,null,""]
["",null,null,null,"",null,null,null,null,null,null,null,""]
[{"$f":"IF(OR(B974=\"\",C974=\"\",D974=\"\",E974=\"\",M974=\"\"),\"\",\"update_data,visible\")","v":""},null,null,null,"",null,null,null,null,null,null,null,{"$f":"IF(SUM(I974:L974)=0,\"\",SUM(I974:L974))","v":""}]
["",null,null,null,{"$f":"LEFT(D975,6)","v":""},null,null,null,null,null,null,null,""]
["",null,null,null,"",null,null,null,null,null,null,null,""]
["",null,null,null,"",null,null,null,null,null,null,null,""]
["",null,null,null,"",null,null,null,null,null,null,null,""]
["",null,null,null,"",null,null,null,null,null,null,null,""]
["",null,null,null,"",null,null,null,null,null,null,null,""]
["",null,null,null,"",null,null,null,null,null,null,null,""]
["",null,null,null,"",null,null,null,null,null,null,null,""]
["",null,null,null,"",null,null,null,null,null,null,null,""]
["",null,null,null,"",null,null,null,null,null,null,null,""]
["",null,null,null,"",null,null,null,null,null,null,null,""]
["",null,null,null,"",null,null,null,null,null,null,null,""]
["",null,null,null,"",null,null,null,null,null,null,null,""]
["",null,null,null,"",null,null,null,null,null,null,null,""]
["",null,null,null,"",null,null,null,null,null,null,null,""]
["",null,null,null,"",null,null,null,null,null,null,null,""]
["",null,null,null,"",null,null,null,null,null,null,null,""]
["",null,null,null,"",null,null,null,null,null,null,null,""]
["",null,null,null,"",null,null,null,null,null,null,null,""]
["",null,null,null,"",null,null,null,null,null,null,null,""]
["",null,null,null,"",null,null,null,null,null,null,null,""]
["",null,null,null,"",null,null,null,null,null,null,null,""]
["",null,null,null,"",null,null,null,null,null,null,null,""]
["",null,null,null,"",null,null,null,null,null,null,null,""]
["",null,null,null,"",null,null,null,null,null,null,null,""]
["",null,null,null,"",null,null,null,null,null,null,null,""]

{"sheet":"Plukklister","index":3,"n_rows":30,"n_cols":1,"rows_kept":30,"cut":false,"hidden":false,"merged":[]}
[]
["For å legge inn nye verdier i listene under:"]
["Verdiene må også være registrert i Unit4 før import. Dette gjøres av UiO sentralt"]
["Listene nedenfor er navngitt områder som benyttes i validering/nedtrekksmenuy i budsjettall-arkfanen. "]
["Det enkleste kan være å sett inn ny(e) rad(er) under den første blanke - og legge de nye verdiene der"]
[]
["Justeringskode"]
[]
["JUST1"]
["JUST10"]
["JUST11"]
["JUST12"]
["JUST13"]
["JUST14"]
["JUST15"]
["JUST16"]
["JUST17"]
["JUST18"]
["JUST19"]
["JUST2"]
["JUST20"]
["JUST3"]
["JUST4"]
["JUST5"]
["JUST6"]
["JUST7"]
["JUST8"]
["JUST9"]
["LVEKST_AAR0"]
["LVEKST_AAR1"]

{"sheet":"validering","index":4,"n_rows":7,"n_cols":1,"rows_kept":7,"cut":false,"hidden":true,"merged":[]}
["Autopostering"]
["SK_LTB"]
["SK2_LTB"]
["SK3_LTB"]
["SK4_LTB"]
["SK4A_LTB"]
["SK5_LTB"]